bitfinex/quotes_SOLUSD_20260119
["timestamp","ask_amount","ask_price","bid_price","bid_amount"]
[1768783781685,6.87560695,133.93,133.87,2.93006385]
[1768783781881,32.9449375,133.95,133.87,2.93006385]
[1768783782482,6.87560695,133.93,133.86,2.93006385]
[1768783783687,11.08155187,133.93,133.87,21.60489764]
[1768783783988,4.20594492,133.92,133.87,21.60489764]
[1768783784186,14.34220122,133.93,133.88,2.93006385]
[1768783784577,18.54814614,133.93,133.88,2.93006385]
[1768783784781,4.20594492,133.92,133.86,10.4005554]
[1768783784969,4.20594492,133.92,133.86,29.07678429]
[1768783785588,4.20594492,133.92,133.87,2.93006385]
[1768783785789,4.20594492,133.92,133.87,10.39971992]
[1768783785975,18.54764744,133.94,133.88,2.93006385]
[1768783786283,20.52594492,133.96,133.88,2.93006385]
[1768783786469,4.20594492,133.95,133.88,2.93006385]
[1768783787191,4.20594492,133.95,133.9,2.93006385]
[1768783788182,11.67143419,133.95,133.9,2.93006385]
[1768783789188,11.67143419,133.95,133.91,7.46770218]
[1768783789394,11.67143419,133.95,133.9,10.39827132]
[1768783789994,11.66863148,134.0,133.94,2.93006385]
[1768783790173,4.20594492,134.0,133.94,2.93006385]
[1768783790769,4.20594492,134.0,133.93,9.8056708]
[1768783791170,4.20594492,134.0,133.94,10.39609341]
[1768783791171,11.66903904,134.0,133.94,10.39609341]
[1768783792190,4.20594492,134.0,133.95,2.93006385]
[1768783792487,4.47571073,134.07,134.0,2.93006385]
[1768783792693,4.47571073,134.07,134.0,9.8056708]
[1768783793068,11.35131768,134.07,134.0,2.93006385]
[1768783793265,11.35131768,134.07,134.01,10.39219354]
[1768783793692,4.47571073,134.06,134.01,10.39219354]
[1768783794803,4.47571073,134.06,134.0,35.92392674]
[1768783794982,4.47571073,134.06,134.0,46.09831009]
[1768783795179,18.64558472,134.08,134.03,2.93006385]
[1768783795180,4.47571073,134.08,134.03,2.93006385]
[1768783795391,4.67571073,134.1,134.03,2.93006385]
[1768783795578,4.67571073,134.1,134.06,9.8056708]
[1768783795579,1e-08,134.1,134.06,9.8056708]
[1768783795789,1e-08,134.1,134.06,19.98005415]
[1768783795975,1e-08,134.1,134.06,13.1044472]
[1768783796570,1e-08,134.1,134.07,7.45879018]
[1768783796974,1e-08,134.1,134.07,26.10576564]
[1768783797597,1e-08,134.1,134.07,7.45879018]
[1768783799076,4.67571073,134.12,134.09,2.93006385]
[1768783799077,1e-08,134.12,134.09,2.93006385]
[1768783799584,0.2,134.17,134.13,5.34408856]
[1768783799809,0.2,134.17,134.14,18.77086903]
[1768783800676,0.2,134.17,134.14,26.22544272]
[1768783801472,7.65337349,134.17,134.1,12.33654924]
[1768783801676,7.65337349,134.17,134.11,7.45602166]
[1768783801677,11.30656057,134.15,134.11,7.45602166]
[1768783801880,11.30656057,134.16,134.11,7.45602166]
[1768783802080,4.43095362,134.16,134.11,11.89495903]
[1768783802295,7.07560695,134.17,134.14,7.45488474]
[1768783802605,7.07560695,134.17,134.08,28.51969551]
[1768783802606,12.08437101,134.17,134.12,4.43893737]
[1768783802914,11.30656057,134.18,134.12,11.8948669]
[1768783803201,11.30656057,134.14,134.08,4.43893737]
[1768783803503,6.87560695,134.12,134.09,7.457486]
[1768783803698,6.87560695,134.12,134.08,11.89710334]
[1768783804100,6.87560695,134.12,134.09,7.45750937]
[1768783804482,6.87560695,134.12,134.07,7.45824872]
[1768783804790,6.87560695,134.12,134.06,4.43893737]
[1768783804791,6.87560695,134.1,134.06,4.43893737]
[1768783804997,11.30656057,134.11,134.05,4.43893737]
[1768783805692,11.30656057,134.09,134.03,4.43893737]
[1768783805897,11.30656057,134.09,134.04,7.46041378]
[1768783807305,18.76429773,134.09,134.04,7.46041378]
[1768783807901,6.87560695,134.05,134.01,11.90103932]
[1768783808281,6.87560695,134.05,134.01,4.43893737]
[1768783808791,6.87560695,134.05,134.01,11.90105327]
[1768783809517,4.43095362,134.04,133.98,39.37804224]
[1768783809732,4.43095362,134.04,134.0,7.46267454]
[1768783810016,4.43095362,134.06,134.0,7.46260021]
[1768783810215,4.43095362,134.08,134.01,11.90094183]
[1768783810397,4.43095362,134.07,134.02,4.43893737]
[1768783810606,11.30656057,134.07,134.02,4.43893737]
[1768783810798,6.87560695,134.07,134.02,4.43893737]
[1768783811309,18.76535739,134.07,134.02,4.43893737]
[1768783811495,6.87560695,134.05,134.01,7.46206326]
[1768783811692,6.87560695,134.05,134.0,4.43893737]
[1768783811693,6.87560695,134.05,134.0,11.90152859]
[1768783811899,6.87560695,134.05,134.01,7.46188425]
[1768783812095,6.87560695,134.05,134.02,7.46150253]
[1768783812321,6.87560695,134.05,134.01,4.43893737]
[1768783812813,6.87560695,134.07,134.02,7.46144279]
[1768783813018,6.87560695,134.07,134.02,11.90038016]
[1768783813207,18.76549208,134.07,134.02,11.90038016]
[1768783813515,4.43095362,134.08,133.99,4.43893737]
[1768783813712,4.43095362,134.09,134.02,11.90051026]
[1768783813895,11.30656057,134.07,134.02,7.46157289]
[1768783814096,11.30656057,134.07,134.02,11.90051026]
[1768783814897,11.30656057,134.05,134.0,4.43893737]
[1768783815116,11.30656057,134.05,134.0,11.90125047]
[1768783815713,11.30656057,134.05,133.98,16.28]
[1768783815714,4.43095362,134.04,133.98,4.43893737]
[1768783815912,4.43095362,134.02,133.96,4.43893737]
[1768783816109,11.30656057,134.04,133.96,4.43893737]
[1768783816311,11.30656057,134.04,133.98,4.43893737]
[1768783816625,6.87560695,134.05,133.98,4.43893737]
[1768783817001,14.33559494,134.05,133.99,11.90218089]
[1768783817398,4.43095362,134.02,133.97,4.43893737]
[1768783817619,4.43095362,134.02,133.97,11.90287461]
[1768783818006,6.87560695,134.03,133.98,11.90265539]
[1768783818408,6.87560695,134.01,133.96,13.6478689]
[1768783818610,6.87560695,133.99,133.94,4.43893737]
[1768783818915,11.30656057,133.98,133.93,4.43893737]
[1768783819100,6.87560695,133.98,133.94,4.43893737]
[1768783819728,23.08546475,134.02,133.94,4.43893737]
[1768783819908,11.30656057,134.01,133.94,4.43893737]
[1768783820109,6.87560695,134.01,133.94,4.43893737]
[1768783820425,27.60656057,134.03,133.96,4.43893737]
[1768783820653,53.72024878,134.03,133.96,4.43893737]
[1768783820811,6.87560695,134.01,133.96,4.43893737]
[1768783821008,6.87560695,134.01,133.97,7.46435769]
[1768783821217,6.87560695,134.03,133.98,4.43893737]
[1768783821731,18.76739625,134.04,133.98,4.43893737]
[1768783822423,6.87560695,134.01,133.96,21.11259]
[1768783822629,6.87560695,134.01,133.96,11.90365847]
[1768783823534,14.33680837,134.03,133.97,4.15808537]
[1768783823710,4.40748139,134.02,133.97,4.15808537]
[1768783824213,14.33603783,134.05,133.98,4.15808537]
[1768783824414,4.40748139,134.08,134.01,6.87560695]
[1768783824614,4.40748139,134.08,134.02,9.20893153]
[1768783825016,11.27687622,134.07,134.02,9.20893153]
[1768783825328,4.40748139,134.05,133.99,5.34408856]
[1768783825534,11.27687622,134.04,133.99,7.46280763]
[1768783825928,11.27687622,134.04,134.0,7.46263711]
[1768783826128,11.27687622,134.06,134.01,7.46170011]
[1768783826630,4.40748139,134.08,134.03,4.15808537]
[1768783826836,20.72748139,134.13,134.05,4.15808537]
[1768783827031,27.59687622,134.13,134.05,4.15808537]
[1768783827221,6.86939483,134.12,134.06,4.15808537]
[1768783827734,7.4565655,134.11,134.06,11.61707701]
[1768783827908,16.32,134.13,134.07,4.15808537]
[1768783828110,4.40748139,134.12,134.07,4.15808537]
[1768783828347,11.27687622,134.1,134.05,4.15808537]
[1768783828516,4.40748139,134.07,134.03,7.46066268]
[1768783829016,11.27687622,134.07,134.03,7.46066268]
[1768783829348,4.40748139,134.03,133.94,4.90468832]
[1768783829637,4.40748139,133.99,133.94,11.62373002]
[1768783830018,30.65103224,134.02,133.95,4.15808537]
[1768783830215,6.86939483,134.0,133.94,26.13071856]
[1768783830423,11.27687622,134.0,133.94,30.28880393]
[1768783830728,6.86939483,134.01,133.95,4.15808537]
[1768783831236,11.27687622,134.01,133.95,4.15808537]
[1768783831646,18.73939681,134.01,133.95,11.62316973]
[1768783831811,6.86939483,134.0,133.95,11.62316973]
[1768783832239,11.87000198,134.01,133.95,11.62316973]
[1768783832429,6.86939483,134.0,133.95,11.62316973]
[1768783832936,16.32,134.02,133.96,4.15808537]
[1768783833119,6.86939483,134.01,133.96,4.15808537]
[1768783833515,16.32,134.06,133.98,4.15808537]
[1768783833832,11.27687622,134.05,133.99,4.15808537]
[1768783834613,4.40748139,134.05,134.0,4.15808537]
[1768783835112,4.40748139,134.09,134.03,4.15808537]
[1768783835317,4.40748139,134.09,134.03,11.0274802]
[1768783835664,11.27687622,134.09,134.04,4.15808537]
[1768783836143,7.45733093,134.1,134.05,4.15808537]
[1768783836640,7.45733093,134.1,134.05,11.61762597]
[1768783836838,11.86406605,134.11,134.05,11.61762597]
[1768783837054,46.23596518,134.13,134.07,4.15808537]
[1768783837621,18.73308539,134.12,134.07,4.15808537]
[1768783838225,23.77548004,134.13,134.07,4.15808537]
[1768783838431,30.64487487,134.13,134.07,4.15808537]
[1768783838862,34.87526857,134.13,134.07,11.61666548]
[1768783839024,4.2303937,134.13,134.08,4.46217577]
[1768783839228,11.09978853,134.15,134.09,4.46217577]
[1768783839720,4.2303937,134.15,134.07,4.46217577]
[1768783839918,4.2303937,134.14,134.08,4.46217577]
[1768783840124,4.2303937,134.14,134.09,4.46217577]
[1768783840923,6.86939483,134.13,134.09,4.46217577]
[1768783841719,30.32304009,134.14,134.09,4.46217577]
[1768783842025,4.2303937,134.13,134.08,11.91993756]
[1768783842224,11.09978853,134.13,134.08,11.91993756]
[1768783842535,4.2303937,134.13,134.09,7.45765695]
[1768783843041,18.55408603,134.16,134.1,11.91887584]
[1768783843245,34.85408603,134.16,134.1,11.91887584]
[1768783843543,6.86939483,134.15,134.1,4.46217577]
[1768783844044,6.86939483,134.14,134.1,4.46217577]
[1768783844343,6.86939483,134.14,134.09,4.46217577]
[1768783844344,11.09978853,134.14,134.09,4.46217577]
[1768783844942,18.55579807,134.12,134.07,4.46217577]
[1768783845131,11.68640324,134.12,134.07,4.46217577]
[1768783845331,7.45600954,134.12,134.07,4.46217577]
[1768783845529,6.86939483,134.19,134.07,4.46217577]
[1768783845530,0.2,134.2,134.11,4.46217577]
[1768783845730,6.86939483,134.17,134.11,4.46217577]
[1768783846052,11.09978853,134.15,134.02,17.04615728]
[1768783846344,11.09978853,134.15,134.08,6.86939483]
[1768783847052,18.55452047,134.15,134.09,7.45767767]
[1768783847544,11.68512564,134.15,134.09,14.3270725]
[1768783848050,11.68512564,134.15,134.1,11.3315706]
[1768783848431,4.2303937,134.13,134.08,7.45805155]
[1768783848645,4.2303937,134.09,134.03,4.46217577]
[1768783848943,4.2303937,134.09,134.04,11.92256921]
[1768783848944,14.32714764,134.09,134.04,11.92256921]
[1768783849142,18.55707731,134.1,134.04,11.92256921]
[1768783849528,7.45728878,134.1,134.05,4.46217577]
[1768783850151,7.45728878,134.1,134.05,11.92193816]
[1768783850339,14.32668361,134.1,134.05,11.92193816]
[1768783850546,18.55707731,134.1,134.05,11.92193816]
[1768783851430,18.55707731,134.1,134.05,4.46217577]
[1768783851745,11.68768248,134.1,134.05,11.92199639]
[1768783852053,18.55707731,134.1,134.05,11.92199639]
[1768783852228,11.68768248,134.1,134.05,11.92199639]
[1768783852436,18.55707731,134.1,134.05,11.92199639]
[1768783852838,4.20291598,134.05,134.01,7.46207103]
[1768783853033,11.07231081,134.05,134.0,11.92939054]
[1768783853242,11.07231081,134.03,133.97,4.46706378]
[1768783853441,6.86939483,134.02,133.97,11.9310656]
[1768783854057,6.86939483,134.02,133.98,7.46373603]
[1768783854642,34.83338533,134.03,133.98,7.46373603]
[1768783854854,4.20291598,134.07,133.99,4.46706378]
[1768783855052,11.07231081,134.06,133.99,4.46706378]
[1768783855250,16.3,134.08,134.02,4.46706378]
[1768783855251,4.20291598,134.08,134.02,4.46706378]
[1768783855441,11.07231081,134.08,134.02,4.46706378]
[1768783855757,6.86939483,134.07,134.02,4.46706378]
[1768783856254,11.07231081,134.08,134.02,4.46706378]
[1768783856861,7.45879018,134.07,134.02,11.92847827]
[1768783857165,14.32818501,134.07,134.02,4.46706378]
[1768783857340,18.53110099,134.07,134.02,4.46706378]
[1768783857540,11.07231081,134.05,134.0,4.46706378]
[1768783858863,18.53277037,134.04,133.98,11.93075742]
[1768783859253,30.31452445,134.04,133.98,11.93075742]
[1768783859458,37.18391928,134.04,133.98,11.93075742]
[1768783860069,11.07231081,134.03,133.98,4.46706378]
[1768783860275,4.20291598,134.01,133.98,4.46706378]
[1768783860844,7.46268656,134.0,133.96,4.46706378]
[1768783861037,11.07231081,133.99,133.94,4.46706378]
[1768783861258,4.20291598,133.99,133.95,7.46524089]
[1768783861461,4.20291598,133.99,133.94,11.93291567]
[1768783861663,4.20291598,133.99,133.94,4.46706378]
[1768783862166,11.07231081,133.99,133.94,4.46706378]
[1768783862569,11.07231081,133.99,133.94,11.9330841]
[1768783862761,7.46380056,133.98,133.94,11.9330841]
[1768783862962,7.46380056,133.98,133.94,4.46706378]
[1768783863149,11.07231081,133.97,133.92,11.93408032]
[1768783863353,11.66671654,133.98,133.93,11.93352478]
[1768783864057,18.53611137,133.98,133.93,4.46706378]
[1768783864458,4.20291598,133.96,133.91,7.46731648]
[1768783864665,4.20291598,133.96,133.91,11.93438026]
[1768783865156,11.07231081,133.96,133.91,11.93438026]
[1768783865566,6.86939483,133.94,133.85,4.46706378]
[1768783865869,6.86939483,133.94,133.89,4.46706378]
[1768783866069,6.86939483,133.94,133.83,38.06600239]
[1768783866070,6.86939483,133.92,133.83,0.1]
[1768783866258,11.01231074,133.92,133.86,4.46706378]
[1768783866459,6.86939483,133.91,133.86,4.46706378]
[1768783866652,6.86939483,133.91,133.86,11.93715031]
[1768783867156,14.33724547,133.91,133.86,11.93715031]
[1768783868967,6.86939483,133.93,133.87,4.46706378]
[1768783870258,11.66967119,133.93,133.88,11.93643934]
[1768783870459,18.53906602,133.93,133.88,11.93643934]
[1768783870665,23.18939483,133.96,133.9,4.46706378]
[1768783870866,27.39231081,133.96,133.9,4.46706378]
[1768783871367,20.52291598,133.96,133.9,4.46706378]
[1768783871569,27.39231081,133.96,133.9,4.46706378]
[1768783871763,4.20291598,133.93,133.87,4.46706378]
[1768783871952,6.86939483,133.91,133.87,11.93687084]
[1768783872649,6.86939483,133.91,133.87,4.46706378]
[1768783872852,6.86939483,133.89,133.85,4.46706378]
[1768783873076,11.0123108,133.89,133.85,7.47098152]
[1768783873755,6.80939482,133.89,133.85,11.9380453]
[1768783874061,6.86939483,133.89,133.85,11.9380453]
[1768783874270,16.32,133.92,133.86,4.46706378]
[1768783874450,11.07231081,133.92,133.86,4.46706378]
[1768783874651,6.86939483,133.91,133.86,4.46706378]
[1768783875267,18.53961572,133.92,133.86,4.46706378]
[1768783875479,6.86939483,133.9,133.86,4.46706378]
[1768783875687,4.20291598,133.91,133.86,4.46706378]
[1768783875975,30.65663617,133.92,133.87,7.46993351]
[1768783876175,23.18939483,133.92,133.87,7.46993351]
[1768783876364,4.20291598,133.95,133.88,11.33645861]
[1768783876560,5.34408856,134.0,133.9,4.46706378]
[1768783876561,4.20291598,133.96,133.9,4.46706378]
[1768783876877,4.20291598,133.96,133.91,4.46706378]
[1768783877068,11.07231081,133.98,133.91,4.46706378]
[1768783877271,11.07231081,133.94,133.88,4.46706378]
[1768783877468,34.97810881,133.99,133.9,4.46706378]
[1768783877469,11.07231081,133.96,133.9,4.46706378]
[1768783878064,7.46547219,133.95,133.9,11.93509968]
[1768783878962,14.33486702,133.95,133.9,11.93509968]
[1768783879278,7.46547219,133.95,133.9,11.93509968]
[1768783879452,18.537783,133.95,133.9,4.46706378]
[1768783879651,18.537783,133.95,133.9,11.93526306]
[1768783880066,7.46512973,133.96,133.91,4.46706378]
[1768783880573,39.18164989,133.99,133.93,11.33645861]
[1768783880777,7.46417081,133.98,133.94,4.46706378]
[1768783882384,14.33356564,133.98,133.94,4.46706378]
[1768783882960,11.34628819,133.96,133.91,7.46770218]
[1768783883162,6.86939483,133.96,133.91,7.46770218]
[1768783883383,4.47689336,133.95,133.9,4.12873364]
[1768783883558,11.34628819,133.95,133.9,4.12873364]
[1768783883761,11.34628819,133.95,133.9,11.59678232]
[1768783883963,11.34628819,133.95,133.9,4.12873364]
[1768783884978,7.46602956,133.94,133.9,4.12873364]
[1768783885692,6.86939483,133.92,133.86,4.12873364]
[1768783885983,6.86939483,133.92,133.86,11.59904366]
[1768783886182,4.47689336,133.92,133.87,7.46992549]
[1768783886687,7.46562335,133.95,133.9,4.12873364]
[1768783886869,11.94251671,133.95,133.9,4.12873364]
[1768783887571,4.47689336,133.97,133.92,11.01143129]
[1768783887771,4.47689336,133.99,133.93,11.01143129]
[1768783888671,7.46380056,133.98,133.93,11.01143129]
[1768783888881,4.47689336,133.93,133.86,4.12873364]
[1768783889179,11.35959101,133.93,133.86,4.12873364]
[1768783889992,11.35959101,133.91,133.86,4.12873364]
[1768783890200,11.35959101,133.91,133.84,25.5615753]
[1768783890201,6.88269765,133.9,133.84,4.12873364]
[1768783890492,11.35959101,133.91,133.84,11.01143129]
[1768783890791,7.46825989,133.9,133.85,7.47071688]
[1768783891172,7.40825989,133.9,133.85,7.47071688]
[1768783892086,7.34825985,133.9,133.85,7.47071688]
[1768783892390,7.34825985,133.9,133.85,4.12873364]
[1768783893475,7.34825985,133.9,133.85,11.59934468]
[1768783893679,18.70785086,133.9,133.85,4.12873364]
[1768783894075,11.35959101,133.89,133.83,11.70078271]
[1768783894280,26.01890958,133.9,133.83,11.70078271]
[1768783894281,11.35959101,133.88,133.83,11.70078271]
[1768783895383,11.35959101,133.88,133.84,7.47156152]
[1768783895589,18.82949815,133.88,133.83,11.70088805]
[1768783895787,18.82949815,133.88,133.83,4.22873364]
[1768783895989,4.47689336,133.87,133.83,0.1]
[1768783896172,4.47689336,133.86,133.83,0.1]
[1768783897003,37.50293705,133.88,133.83,0.1]
[1768783897178,4.47689336,133.87,133.83,0.1]
[1768783897379,7.47049155,133.86,133.83,0.1]
[1768783897587,11.94738491,133.86,133.83,0.1]
[1768783898095,4.12759043,133.85,133.83,1e-08]
[1768783899787,11.59869205,133.85,133.83,1e-08]
[1768783899972,7.47110162,133.85,133.83,1e-08]
[1768783900796,4.12759043,133.84,133.78,7.57457812]
[1768783900977,4.06759042,133.84,133.79,4.19496237]
[1768783901182,6.88269765,133.84,133.78,7.57478963]
[1768783901794,26.14872582,133.85,133.78,0.1]
[1768783901795,6.88269765,133.83,133.78,0.1]
[1768783901973,7.47272455,133.82,133.78,0.1]
[1768783902175,7.47230835,133.83,133.78,0.1]
[1768783902985,11.59989878,133.83,133.78,0.1]
[1768783904010,18.67609576,133.87,133.81,4.19496237]
[1768783904304,4.12759043,133.87,133.82,6.88269765]
[1768783904600,4.12759043,133.87,133.81,11.07766002]
[1768783905481,7.47049155,133.86,133.81,18.55039792]
[1768783905705,4.12759043,133.87,133.82,4.19496237]
[1768783905882,4.12759043,133.87,133.81,33.03864308]
[1768783905883,7.46987481,133.88,133.83,11.07766002]
[1768783906082,7.46987481,133.88,133.83,4.19496237]
[1768783906083,11.59746524,133.88,133.83,4.19496237]
[1768783907083,11.59746524,133.88,133.83,11.66706532]
[1768783907285,11.59746524,133.88,133.83,4.19496237]
[1768783907799,11.59746524,133.88,133.83,11.66705402]
[1768783907999,11.59746524,133.88,133.83,4.19496237]
[1768783908200,11.59746524,133.88,133.83,11.66708262]
[1768783908700,6.88269765,133.87,133.81,4.19496237]
[1768783908900,6.88269765,133.83,133.78,0.1]
[1768783909105,7.47272455,133.82,133.78,7.57488569]
[1768783909307,7.41272451,133.82,133.78,7.57488569]
[1768783909599,7.41272451,133.82,133.78,11.76984806]
[1768783910005,7.41272451,133.82,133.78,4.29496237]
[1768783910782,11.54031494,133.82,133.78,0.1]
[1768783911710,4.12759043,133.81,133.78,0.1]
[1768783911885,4.12759043,133.81,133.75,11.67159788]
[1768783911886,4.12759043,133.8,133.75,11.67159788]
[1768783912211,4.06759043,133.8,133.75,11.67159788]
[1768783912988,11.54183734,133.8,133.75,4.19496237]
[1768783913405,16.34,133.87,133.77,4.06402023]
[1768783913606,6.88269765,133.85,133.77,4.06402023]
[1768783914109,4.2001183,133.84,133.77,4.06402023]
[1768783914283,11.08281595,133.83,133.77,4.06402023]
[1768783914680,4.2001183,133.8,133.74,4.16402023]
[1768783914904,7.47440017,133.79,133.75,7.47657318]
[1768783915096,4.2001183,133.82,133.77,4.06402023]
[1768783915297,4.2001183,133.81,133.75,11.54059341]
[1768783915712,6.88269765,133.82,133.72,0.1]
[1768783915713,4.2001183,133.77,133.72,0.1]
[1768783916298,4.2001183,133.77,133.72,7.57817922]
[1768783917404,16.34,133.82,133.74,4.06402023]
[1768783917405,4.2001183,133.81,133.74,4.06402023]
[1768783917597,7.47272455,133.82,133.75,4.06402023]
[1768783917792,18.55517586,133.83,133.75,4.06402023]
[1768783918016,11.67191696,133.84,133.77,4.06402023]
[1768783918196,4.2001183,133.82,133.77,4.06402023]
[1768783918915,4.2001183,133.82,133.75,4.06402023]
[1768783919215,11.67426128,133.8,133.75,11.54062278]
[1768783919392,4.2001183,133.82,133.76,4.06402023]
[1768783919591,11.08281595,133.84,133.78,4.06402023]
[1768783919812,4.2001183,133.83,133.76,4.06402023]
[1768783920191,6.88269765,133.82,133.76,4.06402023]
[1768783920399,4.2001183,133.81,133.75,7.47660255]
[1768783920596,4.2001183,133.79,133.72,11.64182888]
[1768783920800,11.08281595,133.78,133.72,4.16402023]
[1768783921094,4.2001183,133.77,133.72,0.1]
[1768783921308,4.2001183,133.77,133.72,7.57831289]
[1768783921622,11.67565983,133.77,133.72,7.57831289]
[1768783922212,11.67565983,133.77,133.72,0.1]
[1768783924224,4.2001183,133.79,133.73,4.06402023]
[1768783924809,4.2001183,133.78,133.73,4.06402023]
[1768783926421,18.55833362,133.77,133.72,0.1]
[1768783926623,4.2001183,133.76,133.72,0.1]
[1768783926825,4.2001183,133.8,133.74,0.35442184]
[1768783927003,4.2001183,133.85,133.77,0.35442184]
[1768783927206,4.2001183,133.84,133.78,0.35442184]
[1768783928003,4.2001183,133.84,133.78,7.23711949]
[1768783928429,4.2001183,133.84,133.79,7.47440017]
[1768783929002,11.67184329,133.84,133.79,7.47440017]
[1768783929427,11.67080301,133.86,133.8,0.35442184]
[1768783929925,11.08281595,133.85,133.79,26.16040061]
[1768783930511,4.2001183,133.84,133.79,26.16040061]
[1768783932733,4.2001183,133.87,133.8,0.35442184]
[1768783932914,7.46937556,133.88,133.81,0.35442184]
[1768783933112,7.46937556,133.88,133.82,7.23711949]
[1768783933314,11.66910646,133.89,133.83,0.35442184]
[1768783933620,11.66910646,133.89,133.84,7.47160789]
[1768783934121,4.2001183,133.88,133.82,14.35528385]
[1768783934427,4.2001183,133.88,133.81,0.35442184]
[1768783934428,4.2001183,133.87,133.81,0.35442184]
[1768783935012,11.08281595,133.86,133.8,5.6985104]
[1768783935228,4.2001183,133.85,133.78,0.35442184]
[1768783935433,11.08281595,133.84,133.78,0.35442184]
[1768783935614,11.08281595,133.84,133.79,7.4739169]
[1768783936027,4.2001183,133.84,133.79,7.4739169]
[1768783936426,18.55346631,133.86,133.8,0.35442184]
[1768783936627,4.2001183,133.87,133.8,0.35442184]
[1768783936827,4.2001183,133.87,133.8,7.23711949]
[1768783937131,4.2001183,133.86,133.8,0.35442184]
[1768783937333,4.2001183,133.85,133.79,26.15991734]
[1768783937516,11.08281595,133.85,133.79,26.51433918]
[1768783937716,4.2001183,133.85,133.79,26.51433918]
[1768783938036,4.2001183,133.84,133.79,7.82833874]
[1768783938419,11.67116836,133.85,133.79,14.71103639]
[1768783939338,11.67116836,133.85,133.79,7.82833874]
[1768783939538,11.67116836,133.85,133.79,14.71103639]
[1768783940034,7.47065803,133.86,133.8,7.82796044]
[1768783940241,4.2001183,133.87,133.81,0.35442184]
[1768783941037,4.2001183,133.87,133.8,14.71065809]
[1768783941641,4.2001183,133.86,133.8,7.82796044]
[1768783942331,11.67078619,133.86,133.8,7.82796044]
[1768783942535,11.67078619,133.86,133.8,14.71065809]
[1768783944651,4.46373683,133.85,133.8,14.71065809]
[1768783945546,11.93480449,133.85,133.8,7.82796044]
[1768783946238,11.93480449,133.85,133.8,7.4735386]
[1768783948849,4.46373683,133.83,133.76,19.04334615]
[1768783949028,4.46373683,133.82,133.76,25.93827746]
[1768783949228,4.46373683,133.82,133.76,31.28236602]
[1768783949748,4.46373683,133.82,133.78,7.47460651]
[1768783949928,4.46373683,133.82,133.79,7.4743922]
[1768783951053,4.46373683,133.82,133.78,7.47495888]
[1768783953552,14.36675619,133.84,133.78,7.47495888]
[1768783953553,4.46373683,133.85,133.81,6.89493131]
[1768783953856,4.46373683,133.85,133.8,7.24935315]
[1768783955454,4.46373683,133.85,133.81,7.47328301]
[1768783955656,4.46373683,133.89,133.83,7.24935315]
[1768783955956,4.46373683,133.89,133.81,7.47328301]
[1768783955957,4.46373683,133.88,133.82,6.89493131]
[1768783956536,4.46373683,133.87,133.81,14.72263616]
[1768783956845,11.93422838,133.86,133.81,33.40584369]
[1768783957246,4.46373683,133.86,133.81,33.40584369]
[1768783957851,4.46373683,133.86,133.8,14.36857954]
[1768783958059,4.46373683,133.86,133.81,7.47327822]
[1768783960564,4.38381095,133.83,133.77,19.04256873]
[1768783960768,4.38381095,133.83,133.77,25.93750004]
[1768783960970,4.38381095,133.83,133.78,6.89493131]
[1768783961471,4.38381095,133.83,133.79,7.47432605]
[1768783961770,11.85630485,133.83,133.78,14.36971589]
[1768783962861,4.38381095,133.82,133.78,14.36971589]
[1768783963767,4.38381095,133.82,133.78,7.47478458]
[1768783965264,4.38381095,133.82,133.78,14.36971589]
[1768783965467,4.38381095,133.79,133.73,7.47753393]
[1768783965654,6.89493131,133.76,133.71,23.20147666]
[1768783965855,6.89493131,133.75,133.71,23.20147666]
[1768783966459,7.47719455,133.74,133.71,23.20147666]
[1768783966771,7.41719454,133.74,133.71,23.20147666]
[1768783966953,7.47683483,133.75,133.71,23.20147666]
[1768783967269,37.37243014,133.79,133.71,23.20147666]
[1768783967270,7.47328301,133.81,133.75,0.41442191]
[1768783967470,7.47328301,133.81,133.73,0.41442191]
[1768783967471,26.15649054,133.81,133.73,0.41442191]
[1768783967668,4.38381095,133.8,133.74,6.89493131]
[1768783967973,4.38381095,133.8,133.74,7.30935322]
[1768783968264,4.38381095,133.8,133.73,7.30935322]
[1768783968472,4.38381095,133.79,133.74,7.47719455]
[1768783968652,4.38381095,133.79,133.73,7.47770859]
[1768783968857,4.38381095,133.77,133.73,7.47769007]
[1768783969449,4.32381087,133.77,133.73,7.47769007]
[1768783969969,6.89493131,133.83,133.73,7.47769007]
[1768783969970,7.47348069,133.81,133.74,0.47442199]
[1768783970173,14.368412,133.81,133.74,7.3693533]
[1768783970363,14.36989019,133.78,133.72,7.47814921]
[1768783970569,7.47495888,133.78,133.72,7.47814921]
[1768783971576,4.38381095,133.77,133.72,7.47814921]
[1768783972378,4.38381095,133.77,133.72,14.37308052]
[1768783973162,4.38381095,133.77,133.72,7.47814921]
[1768783973362,4.41605585,133.76,133.72,7.47814921]
[1768783973878,4.41605585,133.77,133.72,14.37308052]
[1768783974690,4.41605585,133.77,133.72,33.54328474]
[1768783974850,26.29194729,133.89,133.77,0.47442199]
[1768783974851,6.89493131,133.85,133.77,0.47442199]
[1768783975054,4.41605585,133.84,133.78,6.89493131]
[1768783975773,4.41605585,133.83,133.78,14.36936311]
[1768783976852,4.41605585,133.83,133.79,6.89493131]